bitfinex-derivatives/quotes_ETHF0:USTF0_20210705
["timestamp","ask_amount","ask_price","bid_price","bid_amount"]
[1625519792241,2.20527,2233.3,2233.2,4.09777]
[1625519792342,2.20527,2233.3,2233.2,3.20527]
[1625519796712,2.20527,2233.3,2233.2,5.60267]
[1625519798782,2.20527,2233.3,2233.2,3.20527]
[1625519810501,2.20527,2233.3,2233.2,2.20527]
[1625519811102,2.20527,2233.3,2233.2,3.20527]
[1625519812309,2.20527,2233.3,2233.2,2.20527]
[1625519813171,2.20527,2233.3,2233.2,3.20527]
[1625519813515,2.20527,2233.3,2233.2,2.20527]
[1625519828133,46.64557,2233.3,2233.2,2.20527]
[1625519838360,39.00867,2233.3,2233.2,2.20527]
[1625519838465,2.6372,2233.5,2233.2,2.20527]
[1625519838560,1.32146453,2233.6,2233.2,3.33792122]
[1625519838694,1.85025639,2233.7,2233.2,3.33792122]
[1625519838695,1.32163861,2233.7,2233.2,3.33792122]
[1625519838964,5.28655443,2234.6,2233.3,0.79579226]
[1625519838965,1.32142249,2234.2,2233.3,0.79579226]
[1625519839165,1.32142249,2234.2,2234.0,40.5405]
[1625519839265,1.32142249,2234.2,2234.1,3.2559]
[1625519839469,1.84999148,2234.3,2234.1,3.2559]
[1625519839470,1.32133228,2234.3,2234.1,3.2559]
[1625519839765,1.84957306,2234.7,2234.1,3.2559]
[1625519839766,1.32112361,2234.6,2234.1,3.2559]
[1625519840067,1.32112361,2234.6,2234.5,4.41054]
[1625519840168,1.32109524,2234.7,2234.5,4.41054]
[1625519841219,1.32109524,2234.7,2234.5,5.41054]
[1625519841427,1.32055807,2234.9,2234.5,5.41054]
[1625519842075,1.32055807,2234.9,2234.8,2.20527]
[1625519842636,3.52514911,2235.0,2234.8,2.20527]
[1625519842961,1.31990706,2234.9,2234.8,2.20527]
[1625519844609,3.52476067,2235.0,2234.8,2.20527]
[1625519846665,2.20527,2235.0,2234.8,2.20527]
[1625519850539,2.20527,2235.0,2234.8,3.20527]
[1625519851442,2.20527,2235.0,2234.8,2.20527]
[1625519851842,5.53107,2235.0,2234.8,2.20527]
[1625519865735,5.53107,2235.0,2234.8,3.20527]
[1625519866134,5.53107,2235.0,2234.8,2.20527]
[1625519868552,44.41187,2235.0,2234.8,2.20527]
[1625519868951,44.41187,2235.0,2234.5,2.20527]
[1625519868952,44.41187,2235.0,2234.3,1.0]
[1625519869051,44.41187,2235.0,2233.7,1.0]
[1625519869151,5.0,2234.9,2233.7,1.0]
[1625519869252,5.0,2234.9,2232.8,1.24334041]
[1625519869354,1.31748404,2234.8,2232.7,1.31695699]
[1625519869458,1.31748404,2234.8,2232.5,1.24636697]
[1625519869656,39.6925,2233.2,2232.5,1.24636697]
[1625519869753,39.6925,2233.2,2232.0,3.24055412]
[1625519869754,42.402,2233.2,2232.6,0.13265321]
[1625519870162,42.402,2233.2,2232.2,0.13266363]
[1625519870358,2.20527,2232.6,2232.3,2.20527]
[1625519870455,5.04177,2232.6,2232.4,1.0]
[1625519872378,2.20527,2232.5,2232.4,1.0]
[1625519872610,42.33617,2232.5,2232.4,1.0]
[1625519873713,42.33617,2232.5,2232.1,2.20527]
[1625519873813,42.33617,2232.5,2232.1,3.20527]
[1625519874115,42.33617,2232.5,2232.1,2.20527]
[1625519874314,2.20527,2232.2,2231.8,2.20527]
[1625519874768,2.20527,2232.2,2232.1,1.0]
[1625519874866,2.20527,2232.2,2231.8,2.20527]
[1625519876069,2.20527,2232.2,2231.8,3.20527]
[1625519876321,2.20527,2231.9,2231.8,3.20527]
[1625519876421,4.36397,2231.9,2231.8,3.20527]
[1625519877472,4.36397,2231.9,2231.8,1.0]
[1625519878523,4.36397,2231.9,2231.3,43.97347]
[1625519879276,4.36397,2231.9,2231.4,0.13272807]
[1625519879630,4.36397,2231.9,2231.4,1.13272807]
[1625519880031,4.36397,2231.9,2231.4,1.0]
[1625519880331,4.36397,2231.9,2231.6,2.20527]
[1625519880451,4.36397,2231.9,2231.7,1.0]
[1625519882337,2.20527,2231.8,2231.7,1.0]
[1625519883036,2.20527,2231.8,2231.7,1.13271568]
[1625519884405,2.20527,2232.3,2231.7,3.33798568]
[1625519884860,2.20527,2232.3,2231.8,0.13270251]
[1625519886309,45.6978,2232.6,2231.8,0.13270251]
[1625519886410,45.6978,2232.6,2232.4,2.20527]
[1625519886513,45.6978,2232.6,2232.5,1.0]
[1625519890167,2.20527,2232.7,2232.5,1.0]
[1625519890368,2.20527,2232.7,2232.6,2.20527]
[1625519890469,2.20527,2232.7,2232.6,3.20527]
[1625519910170,50.7867,2233.7,2232.6,3.20527]
[1625519910273,15.18396142,2234.2,2232.6,3.20527]
[1625519910373,1.31616142,2234.2,2232.6,3.20527]
[1625519910472,1.31613068,2234.3,2232.6,3.20527]
[1625519910574,2.20527,2233.7,2233.6,2.20527]
[1625519911173,2.20527,2233.7,2233.4,2.20527]
[1625519911977,2.20527,2233.7,2233.4,3.20527]
[1625519912580,4.41054,2233.7,2233.4,3.20527]
[1625519912881,4.41054,2233.7,2233.4,2.20527]
[1625519913084,4.41054,2233.7,2233.4,3.20527]
[1625519922920,7.19784,2233.7,2233.4,3.20527]
[1625519923022,7.19784,2233.7,2233.4,2.20527]
[1625519924926,7.19784,2233.7,2233.4,3.20527]
[1625519932043,7.19784,2233.7,2233.4,1.0]
[1625519932143,7.19784,2233.7,2231.8,4.759]
[1625519932144,7.19784,2233.7,2233.3,1.0]
[1625519932244,7.19784,2233.7,2231.8,4.759]
[1625519932343,7.19784,2233.7,2232.4,1.0]
[1625519932594,7.19784,2233.7,2232.5,0.13266381]
[1625519932695,4.99257,2233.7,2233.1,2.20527]
[1625519932804,4.99257,2233.7,2233.2,1.0]
[1625519934622,2.20527,2233.3,2233.2,1.0]
[1625519955492,52.65147,2233.3,2233.2,1.0]
[1625519956296,52.65147,2233.3,2233.2,1.13265934]
[1625519973411,52.65147,2233.3,2232.6,2.58083881]
[1625519973503,53.65147,2233.3,2232.6,2.58083881]
[1625519973601,53.65147,2233.3,2232.6,1.25786006]
[1625519973704,54.97484099,2233.3,2232.3,2.58269595]
[1625519973901,54.97484099,2233.3,2232.3,1.25946922]
[1625519974001,59.97484099,2233.3,2232.3,1.25946922]
[1625519974210,52.4582,2232.4,2232.1,1.26012028]
[1625519974302,1.0,2232.3,2232.1,1.26012028]
[1625519974553,1.0,2232.3,2232.0,1.26037884]
[1625519974653,1.0,2232.3,2232.2,0.66350048]
[1625519974853,5.41054,2232.3,2232.2,0.66350048]
[1625519975052,5.41054,2232.3,2232.1,0.66351172]
[1625519975854,5.41054,2232.3,2232.0,4.79267338]
[1625519975956,5.41054,2232.3,2231.6,3.27787849]
[1625519976156,10.41054,2232.3,2231.6,3.27787849]
[1625519976256,10.41054,2232.3,2231.6,7.849e-05]
[1625519976365,10.41054,2232.3,2231.4,3.2786094]
[1625519976666,10.41054,2232.3,2230.5,6.68963738]
[1625519976820,2.20527,2230.9,2230.7,2.20527]
[1625519976920,4.44827,2230.9,2230.7,2.20527]
[1625519978433,5.44827,2230.9,2230.7,2.20527]
[1625519978885,2.20527,2230.8,2230.7,2.20527]
[1625519978987,3.20527,2230.8,2230.7,2.20527]
[1625519979787,3.20527,2230.8,2230.7,40.19407]
[1625519984445,2.20527,2230.8,2230.7,40.19407]
[1625519984899,3.20527,2230.8,2230.7,40.19407]
[1625519985299,2.20527,2230.8,2230.7,40.19407]
[1625519987147,12.75733615,2234.5,2230.7,40.19407]
[1625519987247,2.5364,2232.4,2230.7,40.19407]
[1625519988249,1.0,2232.2,2230.7,40.19407]
[1625519988598,41.9706,2232.2,2230.7,40.19407]
[1625519988950,2.20527,2231.4,2231.3,2.20527]
[1625519990904,4.41054,2231.4,2231.3,2.20527]
[1625519992407,2.20527,2231.4,2231.3,2.20527]
[1625519992983,2.20527,2231.4,2231.3,4.41054]
[1625519995474,1.0,2232.2,2231.3,4.41054]
[1625519996982,2.20527,2232.0,2231.9,2.20527]
[1625519997079,3.20527,2232.0,2231.9,2.20527]
[1625520002211,2.20527,2232.0,2231.9,2.20527]
[1625520002305,2.20527,2232.0,2231.9,4.49867]
[1625520002705,1.0,2233.2,2231.9,4.49867]
[1625520003007,2.20527,2232.8,2232.7,2.20527]
[1625520003106,2.20527,2232.8,2232.7,4.38477]
[1625520003408,2.20527,2232.8,2232.7,42.54077]
[1625520003507,1.0,2233.2,2232.7,42.54077]
[1625520004409,14.2035,2234.2,2232.8,1.0]
[1625520004509,4.210235,2235.0,2232.8,1.0]
[1625520004912,14.7117,2235.1,2232.8,1.0]
[1625520005011,2.20527,2234.2,2234.1,2.20527]
[1625520005110,1.20527,2234.2,2234.1,4.43977]
[1625520005713,1.20527,2234.2,2234.1,49.81897]
[1625520011150,1.0,2235.0,2234.1,49.81897]
[1625520013000,2.20527,2234.7,2234.6,2.20527]
[1625520015008,2.20527,2234.7,2234.6,4.41054]
[1625520015354,3.20527,2234.7,2234.6,4.41054]
[1625520016573,3.20527,2234.7,2233.5,52.6731]
[1625520017013,2.20527,2234.1,2233.8,2.20527]
[1625520017114,4.41607,2234.1,2233.8,2.20527]
[1625520017214,1.0,2234.0,2233.8,2.20527]
[1625520017613,4.41607,2234.1,2233.8,2.20527]
[1625520017915,1.0,2234.0,2233.8,2.20527]
[1625520018719,1.0,2234.0,2233.6,2.20527]
[1625520018825,4.41607,2234.1,2233.6,2.20527]
[1625520019127,2.20527,2233.7,2233.6,2.20527]
[1625520024194,1.0,2234.0,2233.6,2.20527]
[1625520025201,1.0,2234.0,2233.9,2.20527]
[1625520027311,2.20527,2234.1,2233.9,2.20527]
[1625520027661,3.20527,2234.3,2233.9,2.20527]
[1625520027764,2.20527,2234.3,2234.2,42.3406]
[1625520029215,2.20527,2234.3,2234.2,44.54587]
[1625520031471,3.20527,2234.3,2234.2,44.54587]
[1625520035037,2.20527,2234.3,2234.2,44.54587]
[1625520035836,3.20527,2234.3,2234.2,44.54587]
[1625520036041,2.20527,2234.3,2234.2,44.54587]
[1625520036287,3.20527,2234.3,2234.2,44.54587]
[1625520043012,3.20527,2234.3,2234.2,45.43837]
[1625520044615,3.20527,2234.3,2234.2,44.54587]
[1625520049424,1.0,2234.3,2234.2,44.54587]
[1625520054512,1.0,2234.5,2234.2,44.54587]
[1625520055265,1.0,2234.5,2234.2,2.20527]
[1625520055467,1.0,2234.5,2234.2,4.41054]
[1625520057471,5.26327,2234.3,2234.2,4.41054]
[1625520057570,6.26327,2234.3,2234.2,4.41054]
[1625520059279,6.26327,2234.3,2234.1,40.8817]
[1625520063448,2.20527,2234.2,2234.1,40.8817]
[1625520063549,3.20527,2234.2,2234.1,40.8817]
[1625520071527,3.20527,2234.2,2234.1,43.08697]
[1625520072027,2.20527,2234.3,2234.1,43.08697]
[1625520072128,55.0374,2235.5,2234.1,44.08697]
[1625520072228,4.759,2235.5,2234.1,44.08697]
[1625520072538,90.2936,2236.0,2234.1,44.08697]
[1625520072787,90.2936,2236.0,2234.7,56.2352]
[1625520073088,1.0,2235.3,2234.7,56.2352]
[1625520073540,1.0,2235.3,2234.8,2.20527]
[1625520073541,2.20527,2234.9,2234.8,2.20527]
[1625520075547,4.41054,2234.9,2234.8,2.20527]
[1625520093616,4.41054,2234.9,2234.5,2.20527]
[1625520093716,51.6452,2234.6,2234.5,2.20527]
[1625520093815,55.0254,2234.6,2234.5,2.20527]
[1625520095668,57.23067,2234.6,2234.5,2.20527]
[1625520096529,5.58547,2234.6,2234.5,2.20527]
[1625520096619,2.20527,2234.6,2234.5,2.20527]
[1625520097370,2.20527,2234.6,2234.5,40.74847]
[1625520099155,2.20527,2234.6,2234.5,41.74847]
[1625520101165,2.20527,2234.6,2234.5,40.74847]
[1625520101266,2.20527,2234.6,2234.5,41.74847]
[1625520101466,2.20527,2234.6,2234.5,40.74847]
[1625520102769,2.20527,2234.6,2234.5,2.20527]
[1625520103371,42.42527,2234.6,2234.5,2.20527]
[1625520103523,42.42527,2234.6,2234.5,3.20527]
[1625520103771,42.42527,2234.6,2234.5,2.20527]
[1625520104623,45.07269396,2234.6,2234.5,2.20527]
[1625520109549,42.42527,2234.6,2234.5,2.20527]
[1625520111155,42.42527,2234.6,2234.1,2.20527]
[1625520111453,2.6481234,2234.5,2234.1,2.20527]
[1625520111803,42.86507,2234.2,2234.1,2.20527]
[1625520111902,46.31437,2234.2,2234.1,2.20527]
[1625520112104,46.31437,2234.2,2234.1,2.86834589]
[1625520113210,46.31437,2234.2,2234.1,2.20527]
[1625520115972,46.31437,2234.2,2233.9,2.20527]
[1625520116525,46.31437,2234.2,2234.0,0.66311543]
[1625520116725,48.96281211,2234.2,2234.0,0.66311543]
[1625520117528,46.31437,2234.2,2234.0,0.66311543]
[1625520117777,2.20527,2234.1,2234.0,0.66311543]
[1625520117877,2.20527,2234.1,2234.0,1.543e-05]
[1625520118381,2.20527,2234.1,2233.9,2.20527]
[1625520118781,2.20527,2234.1,2233.3,52.2697]
[1625520119179,2.20527,2234.1,2233.4,1.32633672]
[1625520119278,2.20527,2234.1,2233.5,1.0]
[1625520119530,52.8684,2233.9,2233.5,1.0]
[1625520119779,4.41054,2233.6,2233.5,1.0]
[1625520119879,7.78904,2233.6,2233.5,1.0]
[1625520123385,3.4493,2234.2,2233.5,1.0]
[1625520123484,2.64740919,2234.3,2233.5,1.0]
[1625520123838,4.85267919,2234.3,2234.2,2.20527]
[1625520124134,4.85267919,2234.3,2234.2,55.04237]
[1625520124236,4.85267919,2234.3,2234.2,56.04237]
[1625520124237,2.20527,2234.3,2234.2,56.04237]
[1625520124335,2.20527,2234.3,2234.2,55.04237]
[1625520125899,4.41054,2234.3,2234.2,56.04237]
[1625520133655,7.20914,2234.3,2234.2,56.04237]
[1625520135614,7.20914,2234.3,2234.2,56.70533733]
[1625520136211,7.20914,2234.3,2234.2,3.86823733]
[1625520139770,7.20914,2234.3,2234.2,52.10523733]
[1625520150713,7.20914,2234.3,2234.2,3.86823733]
[1625520152365,7.20914,2234.3,2234.2,3.20527]
[1625520154018,7.20914,2234.3,2234.2,1.0]
[1625520154119,7.20914,2234.3,2233.7,89.85907]
[1625520154223,7.20914,2234.3,2233.8,1.0]
[1625520154775,7.20914,2234.3,2233.7,89.85907]
[1625520155426,7.20914,2234.3,2233.8,0.66312613]
[1625520156023,2.20527,2233.9,2233.8,0.66312613]
[1625520156325,2.20527,2233.9,2233.8,1.66312613]
[1625520156925,2.20527,2233.9,2233.8,0.66312613]
[1625520157378,2.20527,2233.9,2233.7,2.20527]
[1625520158281,53.6463,2233.8,2233.7,2.20527]
[1625520158382,56.2953,2233.8,2233.7,2.20527]
[1625520164775,56.2953,2233.8,2233.7,2.86842798]
[1625520165324,56.2953,2233.8,2233.7,3.86842798]
[1625520166778,2.20527,2233.9,2233.7,3.86842798]
[1625520167081,2.20527,2233.9,2233.8,0.66310477]
[1625520167382,2.20527,2233.9,2233.8,45.43810477]
[1625520167482,2.20527,2233.9,2233.8,46.43810477]
[1625520168987,2.20527,2233.9,2233.8,1.66310477]
[1625520169489,46.72677,2233.9,2233.8,1.66310477]
[1625520178572,2.20527,2233.9,2233.8,1.66310477]
[1625520178773,2.20527,2233.9,2233.8,0.66310477]
[1625520181881,44.94447,2233.9,2233.8,0.66310477]
[1625520184385,44.94447,2233.9,2233.8,1.66310477]
[1625520184835,44.94447,2233.9,2233.8,0.66310477]
[1625520185139,44.94447,2233.9,2233.4,1.76464691]
[1625520185442,44.94447,2233.9,2233.5,0.66314596]
[1625520185541,49.94447,2233.9,2233.5,0.66314596]
[1625520185842,49.94447,2233.9,2233.2,0.66318405]
[1625520186150,59.68264,2233.3,2233.2,0.66318405]
[1625520186249,61.95734,2233.3,2232.8,1.76735951]
[1625520186449,61.95734,2233.3,2232.6,1.76870891]
[1625520186810,61.95734,2233.3,2232.5,1.76817421]
[1625520187009,61.95734,2233.3,2232.7,0.66335761]
[1625520187311,61.95734,2233.3,2232.6,0.66335683]
[1625520187412,49.4987,2232.9,2232.6,0.66335683]
[1625520188064,49.4987,2232.9,2232.5,0.66336331]
[1625520188163,4.41054,2232.6,2232.5,0.66336331]
[1625520188262,7.54474,2232.6,2232.5,0.66336331]
[1625520189312,7.54474,2232.6,2232.5,1.66336331]
[1625520189714,7.54474,2232.6,2232.5,41.52986331]
[1625520190271,7.54474,2232.6,2232.5,42.85651438]
[1625520190976,7.54474,2232.6,2232.5,41.52986331]
[1625520192233,7.54474,2232.6,2232.5,3.86863331]
[1625520192533,7.54474,2232.6,2232.5,2.86863331]
[1625520192733,49.16784,2232.6,2232.5,2.86863331]
[1625520195290,49.16784,2232.6,2232.5,3.86863331]
[1625520197242,7.54474,2232.6,2232.5,3.86863331]
[1625520197958,3.1342,2232.6,2232.5,3.86863331]
[1625520198057,2.2747,2233.3,2232.5,3.86863331]
[1625520198161,48.8809,2233.5,2232.5,3.86863331]
[1625520198258,2.20527,2233.4,2233.2,2.20527]
[1625520198358,4.84817,2233.4,2233.2,2.20527]
[1625520201922,45.4989,2233.3,2233.2,2.20527]
[1625520202324,45.4989,2233.3,2233.0,2.20527]
[1625520204277,2.20527,2233.1,2233.0,2.20527]
[1625520207637,2.20527,2233.1,2232.7,1.0]
[1625520207739,41.0856,2232.8,2232.7,1.0]
[1625520207839,43.2429,2232.8,2232.7,1.0]
[1625520208289,45.44817,2232.8,2232.7,1.0]
[1625520209693,4.36257,2232.8,2232.7,1.0]
[1625520216933,2.20527,2232.8,2232.7,1.0]
[1625520217883,4.72297,2232.8,2232.7,1.0]
[1625520223499,2.20527,2232.8,2232.7,1.0]
[1625520226622,45.82027,2232.8,2232.7,1.0]
[1625520240707,46.82027,2232.8,2232.0,1.26655805]
[1625520240905,46.82027,2232.8,2231.8,1.26711523]
[1625520241006,51.82027,2232.8,2231.8,1.26711523]
[1625520241417,51.82027,2232.8,2231.6,1.26778126]
[1625520241516,47.1677,2231.9,2231.6,1.26778126]
[1625520241616,1.0,2231.8,2231.6,1.26778126]
[1625520241944,1.0,2231.8,2231.2,3.29623128]
[1625520241945,1.0,2231.8,2231.3,1.26906587]
[1625520242019,53.4763,2231.4,2231.3,1.26906587]
[1625520242121,54.4763,2231.4,2231.3,1.26906587]
[1625520242226,57.6602,2231.4,2231.3,1.26906587]
[1625520242419,57.6602,2231.4,2230.9,1.26959852]
[1625520242519,4.41054,2231.0,2230.9,1.26959852]
[1625520242735,4.41054,2231.0,2230.7,3.47535799]
[1625520242826,4.41054,2231.0,2230.7,1.27008799]
[1625520243023,4.41054,2231.0,2230.8,0.66372829]
[1625520243125,60.76744,2231.0,2230.8,0.66372829]
[1625520244537,60.76744,2231.0,2230.7,0.66372916]
[1625520245390,61.76744,2231.0,2230.7,0.66372916]
[1625520246391,61.76744,2231.0,2230.5,0.66375117]
[1625520246591,2.20527,2230.6,2230.5,0.66375117]
[1625520246690,5.35037,2230.6,2230.5,0.66375117]
[1625520247592,45.34987,2230.6,2230.5,0.66375117]
[1625520247892,45.34987,2230.6,2230.4,3.47599794]
[1625520248043,45.34987,2230.6,2230.4,2.20527]
[1625520248597,47.55514,2230.6,2230.4,2.20527]
[1625520248895,48.55514,2230.6,2230.4,2.20527]
[1625520251058,48.55514,2230.6,2229.8,1.27058054]
[1625520251259,48.55514,2230.6,2229.7,1.53339329]
[1625520251459,55.2393,2230.1,2229.7,1.53339329]
[1625520251559,1.0,2230.0,2229.5,1.27160833]
[1625520251659,3.7768,2230.0,2229.5,1.27160833]
[1625520251959,3.7768,2230.0,2229.4,1.2718561]
[1625520252368,3.7768,2230.0,2229.3,1.27094289]
[1625520252570,2.20527,2229.6,2229.5,2.20527]
[1625520253168,46.46227,2229.6,2229.5,2.20527]
[1625520253670,2.20527,2229.6,2229.5,2.20527]
[1625520254282,3.7768,2230.0,2229.5,2.20527]
[1625520254381,2.7768,2230.0,2229.5,2.20527]
[1625520254584,2.20527,2229.9,2229.5,2.20527]
[1625520255035,54.452,2229.6,2229.5,2.20527]
[1625520255544,2.20527,2229.9,2229.5,2.20527]
[1625520256593,2.20527,2229.9,2229.8,2.20527]
[1625520256939,52.19147,2229.9,2229.8,2.20527]
[1625520257743,2.20527,2229.9,2229.8,2.20527]
[1625520262057,5.67127,2229.9,2229.8,2.20527]
[1625520263111,5.67127,2229.9,2229.5,2.20527]
[1625520264668,3.466,2229.9,2229.8,2.20527]
[1625520266131,2.20527,2230.1,2229.8,2.20527]
[1625520266682,2.20527,2230.1,2230.0,2.20527]
[1625520266782,1.73967,2230.1,2230.0,2.20527]
[1625520267735,2.20527,2230.4,2230.0,2.20527]
[1625520268139,1.0,2230.6,2230.0,2.20527]
[1625520268236,1.0,2230.8,2230.0,2.20527]
[1625520268335,15.1999,2232.2,2230.0,2.20527]
[1625520268694,2.20527,2231.3,2231.2,2.20527]
[1625520269438,3.20527,2231.3,2231.2,2.20527]
[1625520270693,5.41054,2231.3,2231.2,2.20527]
[1625520284810,8.33014,2231.3,2231.2,2.20527]
[1625520284910,8.33014,2231.3,2228.4,2.7146]
[1625520285011,8.33014,2231.3,2229.0,2.52254814]
[1625520285111,8.33014,2231.3,2229.3,2.16397407]
[1625520285464,8.33014,2231.3,2229.2,1.26163651]
[1625520285764,8.33014,2231.3,2228.9,1.26267967]
[1625520286216,8.33014,2231.3,2228.8,15.202]
[1625520286462,52.7274,2230.6,2228.8,15.202]
[1625520286563,1.0,2230.5,2228.8,15.202]
[1625520286664,1.0,2230.5,2228.8,16.46512422]
[1625520286762,1.0,2230.5,2230.4,2.20527]
[1625520296158,1.0,2230.5,2230.3,2.20527]
[1625520303680,1.0,2231.5,2230.3,2.20527]
[1625520303780,1.0,2231.5,2230.3,4.81417]
[1625520304832,3.20527,2231.5,2231.4,2.20527]
[1625520305698,3.20527,2231.5,2231.0,56.4076]
[1625520306205,3.20527,2231.5,2230.3,2.6089]
[1625520306414,6.65137,2231.5,2230.2,14.8165]
[1625520306911,2.20527,2230.8,2230.5,2.20527]
[1625520307008,5.49577,2230.8,2230.5,2.20527]
[1625520308913,5.49577,2230.8,2230.6,2.20527]
[1625520309267,3.2905,2230.8,2230.6,2.20527]
[1625520309666,4.1983,2230.8,2230.6,2.20527]
[1625520310168,4.1983,2230.8,2229.7,40.834]
[1625520310367,3.2905,2230.8,2229.7,40.834]
[1625520310929,2.20527,2230.5,2230.3,2.20527]
[1625520311020,1.0,2230.4,2230.3,2.20527]
[1625520316334,1.8905,2230.4,2230.3,2.20527]
[1625520321158,1.8905,2230.4,2230.1,2.20527]
[1625520321611,1.0,2230.4,2230.1,2.20527]
[1625520322669,1.8869,2230.4,2230.1,2.20527]
[1625520322967,2.20527,2230.2,2230.1,2.20527]
[1625520323066,6.35337,2230.2,2230.1,2.20527]
[1625520324187,4.1481,2230.2,2230.1,2.20527]
[1625520328506,4.1481,2230.2,2229.7,2.20527]
[1625520329013,4.41054,2229.8,2229.7,2.20527]
[1625520329111,5.41054,2229.8,2229.7,2.20527]
[1625520329413,5.41054,2229.8,2229.3,1.27641378]
[1625520329612,5.41054,2229.8,2229.2,1.2789597]
[1625520330163,5.41054,2229.8,2228.7,1.28069634]
[1625520330264,44.5045,2228.9,2228.7,1.28069634]
[1625520330562,44.5045,2228.9,2228.5,1.28042028]
[1625520330866,44.5045,2228.9,2228.4,1.28055239]
[1625520330968,2.20527,2228.7,2228.4,1.28055239]
[1625520331068,2.20527,2228.7,2228.6,0.66433816]
[1625520331369,2.20527,2228.7,2228.5,0.66433995]
[1625520331921,2.20527,2228.7,2228.4,9.234e-05]
[1625520332021,1.0,2228.6,2228.4,9.234e-05]
[1625520332674,1.0,2228.6,2227.5,2.56412822]
[1625520332987,4.41054,2227.6,2227.5,4.76939822]
[1625520333481,5.41054,2227.6,2227.5,4.76939822]
[1625520333576,5.41054,2227.6,2227.5,2.20527]
[1625520334178,5.41054,2227.6,2227.5,7e-05]
[1625520334281,5.41054,2227.6,2227.2,2.20527]
[1625520334584,4.41054,2227.6,2227.2,2.20527]
[1625520335032,2.20527,2227.3,2227.2,2.20527]
[1625520337634,3.20527,2227.3,2227.2,2.20527]
[1625520339318,3.20527,2227.3,2227.0,2.20527]
[1625520339518,3.20527,2227.3,2226.0,15.2435]
[1625520339819,3.20527,2227.3,2225.9,2.56229736]
[1625520339921,42.9042,2227.0,2225.9,2.56229736]
[1625520340019,45.8949,2227.0,2225.9,2.56229736]
[1625520340221,46.8949,2227.0,2225.7,2.56342931]
[1625520340519,46.8949,2227.0,2225.5,2.5603967]
[1625520341073,2.20527,2226.1,2226.0,2.20527]
[1625520341171,4.62477,2226.1,2226.0,2.20527]
[1625520341371,4.62477,2226.1,2225.8,2.20527]
[1625520341673,3.56093265,2226.1,2225.8,2.20527]
[1625520341775,58.98633265,2226.1,2225.8,2.20527]
[1625520343074,2.20527,2226.0,2225.8,2.20527]
[1625520345931,3.5044,2226.5,2225.8,2.20527]
[1625520346232,45.8949,2227.0,2225.8,2.20527]
[1625520346535,1.0,2226.9,2225.8,2.20527]
[1625520347136,2.20527,2226.2,2226.1,2.20527]
[1625520349440,2.20527,2226.2,2225.1,64.8662]
[1625520349741,2.20527,2226.2,2225.1,50.1375]
[1625520351197,2.20527,2226.2,2226.1,2.20527]
[1625520351693,2.20527,2226.5,2226.1,2.20527]
[1625520352995,1.0,2227.0,2226.1,2.20527]
[1625520353199,2.20527,2226.8,2226.6,2.20527]
[1625520356621,2.20527,2227.0,2226.6,2.20527]
[1625520356743,1.0,2227.3,2226.6,2.20527]
[1625520357231,1.0,2227.3,2226.0,3.0298]
[1625520357232,1.0,2227.3,2227.2,4.41054]
[1625520358174,2.20527,2227.4,2227.2,4.41054]
[1625520362134,2.20527,2227.6,2227.2,4.41054]
[1625520362935,5.0,2229.9,2227.2,6.73874]
[1625520363037,1.0,2228.3,2227.2,6.73874]
[1625520363237,2.20527,2228.1,2228.0,2.20527]
[1625520366244,1.0,2228.8,2228.0,4.64547]
[1625520366547,1.0,2229.7,2228.0,4.64547]
[1625520367303,2.20527,2229.1,2228.9,2.20527]
[1625520367405,2.20527,2229.1,2228.9,4.75607]
[1625520367545,1.0,2229.0,2228.9,4.75607]
[1625520368148,2.20527,2229.1,2228.9,4.75607]
[1625520368550,2.20527,2229.3,2228.9,4.75607]
[1625520369314,3.20527,2229.3,2228.9,4.75607]
[1625520369770,1.0,2229.3,2228.9,4.75607]
[1625520369869,2.20527,2229.4,2228.9,4.75607]
[1625520370577,1.0,2229.3,2228.9,4.75607]
[1625520371277,1.0,2229.3,2229.2,2.20527]
[1625520373032,2.20527,2229.4,2229.2,2.20527]
[1625520373333,1.0,2229.3,2229.2,2.20527]
[1625520375335,1.0,2229.3,2229.2,4.41054]
[1625520377939,2.20527,2229.4,2229.2,4.41054]
[1625520379040,3.20527,2229.4,2229.2,4.41054]
[1625520379891,2.20527,2229.4,2229.2,4.41054]
[1625520383817,2.20527,2229.4,2228.6,41.9538]
[1625520385420,2.20527,2229.4,2229.3,4.41054]
[1625520386592,3.20527,2229.9,2229.3,4.41054]
[1625520387481,2.20527,2229.4,2229.3,4.41054]
[1625520387590,5.01377,2229.4,2229.3,4.41054]
[1625520392889,5.01377,2229.4,2227.9,0.889]
[1625520392989,5.01377,2229.4,2227.3,20.3709]
[1625520393242,5.01377,2229.4,2227.8,54.5494]
[1625520393441,5.01377,2229.4,2229.2,2.20527]
[1625520394594,6.01377,2229.4,2229.2,2.20527]
[1625520395497,2.20527,2229.3,2229.2,2.20527]
[1625520395597,3.20527,2229.3,2229.2,2.20527]
[1625520415741,2.20527,2229.3,2229.2,2.20527]
[1625520416093,3.20527,2229.3,2229.2,2.20527]
[1625520422011,3.20527,2229.3,2229.2,0.87127]
[1625520424376,2.20527,2229.3,2229.2,0.87127]
[1625520425580,1.0,2230.0,2229.2,0.87127]
[1625520425805,2.20527,2230.7,2229.2,0.87127]
[1625520426133,3.20527,2230.7,2229.2,0.87127]
[1625520426334,3.20527,2230.7,2230.6,40.4271]
[1625520426434,2.20527,2230.7,2230.6,43.4835]
[1625520427594,2.20527,2230.7,2230.6,47.89404]